bitfinex/quotes_ETHUSD_20230904
["timestamp","ask_amount","ask_price","bid_price","bid_amount"]
[1693808678044,0.101,1638.5,1638.3,3.08185404]
[1693808679141,0.101,1638.5,1638.4,0.01955712]
[1693808680013,0.101,1638.5,1638.3,3.08185404]
[1693808681143,0.101,1638.5,1638.4,0.01955712]
[1693808682039,0.101,1638.5,1638.1,0.63897341]
[1693808682245,0.101,1638.5,1638.2,3.08185404]
[1693808683010,0.101,1638.5,1638.3,0.01878247]
[1693808687352,3.101,1638.5,1638.3,0.01878247]
[1693808687542,0.3101,1638.4,1638.3,0.01878247]
[1693808687844,3.101,1638.5,1638.3,0.01878247]
[1693808710973,3.74121918,1638.5,1638.3,0.01878247]
[1693808721091,1.70047829,1638.4,1638.3,0.01878247]
[1693808722088,1.70047829,1638.4,1638.1,3.4982]
[1693808722264,1.70047829,1638.4,1638.1,6.58005404]
[1693808723188,1.70047829,1638.4,1638.2,0.01807276]
[1693808723397,2.625159,1638.4,1638.2,0.01807276]
[1693808723574,1.56489989,1638.4,1638.2,0.01807276]
[1693808724192,0.92468071,1638.4,1638.2,0.01807276]
[1693808735601,1.56489989,1638.4,1638.2,0.01807276]
[1693808736167,3.14059989,1638.4,1638.0,33.17413363]
[1693808736368,3.14059989,1638.4,1638.0,36.25598767]
[1693808737214,3.14059989,1638.4,1638.1,0.01933614]
[1693808737388,0.31405999,1638.3,1638.1,0.01933614]
[1693808750924,3.14101725,1638.4,1638.1,0.01933614]
[1693808751496,2.50038071,1638.4,1638.1,0.01933614]
[1693808752621,3.14101725,1638.4,1638.1,0.01933614]
[1693808766136,3.14101725,1638.4,1638.1,0.65887225]
[1693808766443,3.13864725,1638.4,1638.1,0.65887225]
[1693808776446,0.64063654,1638.4,1638.2,4.16385404]
[1693808776653,3.74163654,1638.5,1638.2,4.80339015]
[1693808776882,3.74163654,1638.5,1638.2,3.72139015]
[1693808777058,3.101,1638.5,1638.3,0.01932274]
[1693808777262,3.101,1638.5,1638.4,3.08185404]
[1693808779375,3.101,1638.5,1638.4,3.39197172]
[1693808781044,3.101,1638.5,1638.4,3.41128679]
[1693808788983,3.101,1638.5,1638.4,3.10116911]
[1693808816204,3.101,1638.5,1638.4,0.01931507]
[1693808817315,3.101,1638.5,1638.1,3.69559076]
[1693808817510,3.101,1638.5,1638.2,3.08185404]
[1693808818197,3.101,1638.5,1638.3,0.01932274]
[1693808818396,3.101,1638.5,1638.3,3.10117678]
[1693808821731,3.74121513,1638.5,1638.3,3.10117678]
[1693808827720,3.101,1638.5,1638.3,3.10117678]
[1693808830857,3.74121513,1638.5,1638.3,3.10117678]
[1693808831952,3.101,1638.5,1638.3,3.10117678]
[1693808842867,5.25173913,1638.5,1638.3,0.01932274]
[1693808843069,1.70087623,1638.4,1638.3,0.01932274]
[1693808843234,1.70087623,1638.4,1638.0,2.79660219]
[1693808843434,3.25237623,1638.4,1638.1,3.08185404]
[1693808843638,2.19215351,1638.4,1638.1,3.08185404]
[1693808844052,1.5515,1638.4,1638.1,3.08185404]
[1693808844255,1.5515,1638.4,1638.2,0.01933041]
[1693808844569,6.26275886,1638.5,1638.2,0.01933041]
[1693808844772,7.81425886,1638.5,1638.2,0.01933041]
[1693808854082,0.78142589,1638.4,1638.2,0.01933041]
[1693808873184,7.81425886,1638.5,1638.2,3.10118445]
[1693808873488,3.74165351,1638.5,1638.3,3.08185404]
[1693808874180,3.74165351,1638.5,1638.4,0.01957644]
[1693808874359,4.8018172,1638.5,1638.4,0.01957644]
[1693808875387,4.8018172,1638.5,1638.3,3.08185404]
[1693808875593,3.74165351,1638.5,1638.3,3.08185404]
[1693808878198,3.74165351,1638.5,1638.4,0.01957572]
[1693808878353,4.80181718,1638.5,1638.4,0.01957572]
[1693808879194,4.80181718,1638.5,1638.3,3.08185404]
[1693808879385,3.74165351,1638.5,1638.3,3.08185404]
[1693808880195,3.74165351,1638.5,1638.4,0.01957572]
[1693808880384,4.80181574,1638.5,1638.4,0.01957572]
[1693808881297,4.80181574,1638.5,1638.3,3.08185404]
[1693808881504,3.74165351,1638.5,1638.3,3.54828944]
[1693808881796,3.101,1638.5,1638.4,1.082]
[1693808882095,3.101,1638.5,1638.4,4.16385404]
[1693808882293,3.101,1638.5,1638.4,4.18342976]
[1693808882610,3.101,1638.5,1638.4,4.86934791]
[1693808899020,3.101,1638.5,1638.4,5.34845328]
[1693808900329,3.101,1638.5,1638.4,5.52711059]
[1693808920649,3.101,1638.5,1638.4,4.84119244]
[1693808920961,0.101,1638.5,1638.4,4.84119244]
[1693808924938,0.101,1638.5,1638.4,5.4788056]
[1693808925340,0.101,1638.5,1638.4,4.3968056]
[1693808925549,3.101,1638.5,1638.4,4.3968056]
[1693808928162,3.101,1638.5,1638.4,3.10142976]
[1693808930656,3.001,1638.5,1638.4,3.10142976]
[1693808956861,3.001,1638.5,1638.2,8.77351333]
[1693808957062,3.001,1638.5,1638.3,6.08185404]
[1693808957265,3.001,1638.5,1638.3,6.10068829]
[1693808969000,3.001,1638.5,1638.3,7.05710803]
[1693808971188,3.001,1638.5,1638.3,4.05710803]
[1693808972312,3.67617,1638.5,1638.3,4.05710803]
[1693808972907,3.67617,1638.5,1638.3,3.10068829]
[1693808977011,3.001,1638.5,1638.3,4.18268829]
[1693808977219,3.001,1638.5,1638.4,1.082]
[1693808977422,3.001,1638.5,1638.4,4.16385404]
[1693808978229,3.001,1638.5,1638.4,4.18355565]
[1693808980225,3.001,1638.5,1638.4,3.10155565]
[1693808996134,3.001,1638.5,1638.4,3.74074785]
[1693808996946,3.001,1638.5,1638.4,3.10155565]
[1693808997247,3.001,1638.5,1638.4,3.74068062]
[1693808999309,3.001,1638.5,1638.4,5.88081743]
[1693809003352,3.001,1638.5,1638.4,5.88071869]
[1693809007430,3.001,1638.5,1638.4,10.88071869]
[1693809007765,3.001,1638.5,1638.4,11.83925805]
[1693809008436,3.001,1638.5,1638.4,14.28005805]
[1693809010176,3.001,1638.5,1638.4,15.5562442]
[1693809011474,3.001,1638.5,1638.4,16.052671]
[1693809011838,3.001,1638.5,1638.4,14.45510541]
[1693809013539,3.001,1638.5,1638.4,11.69487365]
[1693809017873,3.001,1638.5,1638.4,9.75434621]
[1693809018081,3.001,1638.5,1638.4,8.98076647]
[1693809018946,3.001,1638.5,1638.4,10.98076647]
[1693809020894,3.001,1638.5,1638.4,8.98076647]
[1693809021116,3.001,1638.5,1638.4,8.79759182]
[1693809025651,3.001,1638.5,1638.4,7.79759182]
[1693809038684,3.001,1638.5,1638.4,8.75434621]
[1693809041920,3.001,1638.5,1638.4,8.11673684]
[1693809058048,3.001,1638.5,1638.4,9.39292299]
[1693809060150,3.001,1638.5,1638.4,8.4361686]
[1693809062554,3.001,1638.5,1638.4,6.8741686]
[1693809062752,3.001,1638.5,1638.4,7.83242073]
[1693809073771,2.801,1638.5,1638.4,7.83242073]
[1693809074136,2.801,1638.5,1638.4,6.55623458]
[1693809074444,2.801,1638.5,1638.4,3.55629475]
[1693809080871,2.801,1638.5,1638.4,1.47444071]
[1693809081173,2.801,1638.5,1638.4,0.65859748]
[1693809081836,2.801,1638.5,1638.4,0.01970161]
[1693809082864,2.801,1638.5,1638.3,0.63889587]
[1693809083069,2.801,1638.5,1638.3,3.72074991]
[1693809083463,2.701,1638.5,1638.3,3.72074991]
[1693809083874,2.701,1638.5,1638.4,0.01680653]
[1693809084981,2.701,1638.5,1638.3,3.72074991]
[1693809085889,2.701,1638.5,1638.4,0.01680653]
[1693809086182,3.15238,1638.5,1638.4,0.01680653]
[1693809086891,3.15238,1638.5,1638.3,3.72074991]
[1693809087686,3.15238,1638.5,1638.3,3.08185404]
[1693809087882,3.15238,1638.5,1638.4,0.01680653]
[1693809088886,3.15238,1638.5,1638.3,3.08185404]
[1693809090082,3.15238,1638.5,1638.4,0.01680653]
[1693809090892,3.15238,1638.5,1638.3,3.08185404]
[1693809091055,2.701,1638.5,1638.3,3.08185404]
[1693809091986,2.701,1638.5,1638.4,0.01680653]
[1693809092896,2.701,1638.5,1638.3,3.08185404]
[1693809093890,2.701,1638.5,1638.4,0.01680653]
[1693809094883,2.701,1638.5,1638.3,3.08185404]
[1693809096087,2.701,1638.5,1638.4,0.01680653]
[1693809096892,2.701,1638.5,1638.3,3.08185404]
[1693809098085,2.701,1638.5,1638.4,0.01680653]
[1693809098891,2.701,1638.5,1638.3,3.08185404]
[1693809099963,2.701,1638.5,1638.4,0.01680653]
[1693809100163,3.15238,1638.5,1638.4,0.01680653]
[1693809100897,3.15238,1638.5,1638.3,3.08185404]
[1693809101083,2.701,1638.5,1638.3,3.08185404]
[1693809101896,2.701,1638.5,1638.4,0.01680653]
[1693809102893,2.701,1638.5,1638.3,3.08185404]
[1693809103997,2.701,1638.5,1638.4,0.01680653]
[1693809104865,2.701,1638.5,1638.3,3.08185404]
[1693809106000,2.701,1638.5,1638.4,0.01680653]
[1693809106698,3.15238,1638.5,1638.4,0.01680653]
[1693809106897,3.15238,1638.5,1638.3,3.08185404]
[1693809107199,2.701,1638.5,1638.3,3.08185404]
[1693809107497,1.8128,1638.6,1638.3,3.08185404]
[1693809107867,1.8128,1638.6,1638.4,0.01680653]
[1693809109010,1.8128,1638.6,1638.3,3.08185404]
[1693809109916,1.8128,1638.6,1638.4,0.01680653]
[1693809110091,2.20101,1638.6,1638.4,0.01680653]
[1693809110911,2.20101,1638.6,1638.3,3.08185404]
[1693809111912,2.20101,1638.6,1638.4,0.01680653]
[1693809112992,2.20101,1638.6,1638.3,3.08185404]
[1693809113913,2.20101,1638.6,1638.4,0.01680653]
[1693809115116,2.20101,1638.6,1638.3,3.08185404]
[1693809116015,2.20101,1638.6,1638.4,0.01610294]
[1693809116914,2.20101,1638.6,1638.3,3.08185404]
[1693809117921,2.20101,1638.6,1638.4,0.01490395]
[1693809118816,4.90101,1638.6,1638.4,0.01490395]
[1693809119014,4.90101,1638.6,1638.3,3.08185404]
[1693809120026,4.90101,1638.6,1638.4,0.01433513]
[1693809120324,0.490101,1638.5,1638.4,0.01433513]
[1693809120504,7.90101,1638.6,1638.4,0.01433513]
[1693809120923,7.90101,1638.6,1638.3,3.08185404]
[1693809122017,7.90101,1638.6,1638.4,0.01323248]
[1693809122911,7.90101,1638.6,1638.3,3.08185404]
[1693809124046,7.90101,1638.6,1638.4,0.01323248]
[1693809125037,7.90101,1638.6,1638.3,3.08185404]
[1693809126030,7.90101,1638.6,1638.4,0.01323248]
[1693809126238,0.790101,1638.5,1638.4,0.01323248]
[1693809126534,7.90101,1638.6,1638.4,0.01323248]
[1693809127044,7.90101,1638.6,1638.3,3.71983652]
[1693809128038,7.90101,1638.6,1638.4,0.01323248]
[1693809128940,7.90101,1638.6,1638.3,3.71983652]
[1693809129126,7.90101,1638.6,1638.3,3.08185404]
[1693809129334,7.90101,1638.6,1638.3,3.72075446]
[1693809130004,7.90101,1638.6,1638.4,0.01323248]
[1693809130507,8.54181343,1638.6,1638.4,0.01323248]
[1693809130919,8.54181343,1638.6,1638.3,3.72075446]
[1693809131933,8.54181343,1638.6,1638.4,0.01323248]
[1693809133038,8.54181343,1638.6,1638.3,3.72075446]
[1693809133955,8.54181343,1638.6,1638.4,0.01323248]
[1693809134129,0.85418134,1638.5,1638.4,0.01323248]
[1693809134318,8.54181343,1638.6,1638.4,0.01323248]
[1693809135014,8.54181343,1638.6,1638.3,3.72075446]
[1693809136035,8.54181343,1638.6,1638.4,0.01152709]
[1693809136947,8.54181343,1638.6,1638.3,3.72075446]
[1693809137930,8.54181343,1638.6,1638.4,0.01109428]
[1693809138243,0.85418134,1638.5,1638.4,0.01109428]
[1693809138549,8.54181343,1638.6,1638.4,0.01109428]
[1693809138962,8.54181343,1638.6,1638.3,3.72075446]
[1693809139729,8.54195222,1638.6,1638.3,3.72089143]
[1693809139952,8.54195222,1638.6,1638.4,0.01109428]
[1693809140955,8.54195222,1638.6,1638.3,3.72089143]
[1693809142029,8.54195222,1638.6,1638.4,0.01109428]
[1693809142233,0.85419522,1638.5,1638.4,0.01109428]
[1693809142442,8.54195222,1638.6,1638.4,0.01109428]
[1693809142959,3.0,1638.4,1638.1,0.63903739]
[1693809143160,3.0,1638.4,1638.1,3.72089143]
[1693809143533,3.64094222,1638.4,1638.1,3.72089143]
[1693809143857,3.0,1638.4,1638.1,3.08185404]
[1693809144030,3.0,1638.4,1638.2,0.01025312]
[1693809144231,3.81075556,1638.4,1638.2,0.01025312]
[1693809187835,4.45169778,1638.4,1638.2,0.01025312]
[1693809226081,3.64094222,1638.4,1638.2,0.01025312]
[1693809267244,3.64102301,1638.4,1638.2,0.01025312]
[1693809324027,3.64102301,1638.4,1638.3,0.01072244]
[1693809324198,6.29155449,1638.4,1638.3,0.01072244]
[1693809325018,6.29155449,1638.4,1638.1,4.21096688]
[1693809325206,3.64102301,1638.4,1638.1,4.21096688]
[1693809326032,3.64102301,1638.4,1638.2,0.01073011]
[1693809326895,4.65672336,1638.4,1638.2,0.01073011]
[1693809329341,3.19303621,1638.3,1638.2,0.01073011]
[1693809329498,1.082,1638.3,1638.2,0.01073011]
[1693809329799,3.32519789,1638.3,1638.2,0.01073011]
[1693809330001,7.13574022,1638.3,1638.2,0.01073011]
[1693809330197,8.76317003,1638.3,1638.2,0.01073011]
[1693809330510,10.40367003,1638.3,1638.2,0.01073011]
[1693809330935,10.40370447,1638.3,1638.2,0.01073011]
[1693809331139,3.0,1638.1,1637.8,30.89113909]
[1693809331294,3.0,1638.1,1637.9,3.08185404]
[1693809331494,3.0,1638.1,1637.9,3.43815335]
[1693809332127,3.0,1638.1,1638.0,0.0123811]
[1693809333532,2.28127145,1638.2,1638.0,0.0123811]
[1693809333943,3.0,1638.1,1638.0,0.0123811]
[1693809335058,2.28127145,1638.2,1638.0,0.0123811]
[1693809335224,3.0,1638.1,1638.0,0.0123811]
[1693809335425,2.28127145,1638.2,1638.0,0.0123811]
[1693809335759,3.0,1638.1,1638.0,0.0123811]
[1693809337130,1.6405,1638.2,1638.0,0.0123811]
[1693809337675,3.0,1638.1,1638.0,0.0123811]
[1693809337834,3.0,1638.1,1638.0,0.32180461]
[1693809338553,3.0,1638.1,1638.0,0.0123811]
[1693809342868,1.6405,1638.2,1638.0,0.0123811]
[1693809343774,3.0,1638.1,1638.0,0.0123811]
[1693809350176,2.95,1638.1,1638.0,0.0123811]
[1693809351780,1.6405,1638.2,1638.0,0.0123811]
[1693809352080,2.95,1638.1,1638.0,0.0123811]
[1693809357386,1.6405,1638.2,1638.0,0.0123811]
[1693809357560,2.95,1638.1,1638.0,0.0123811]
[1693809360991,1.6405,1638.2,1638.0,0.0123811]
[1693809361192,2.95,1638.1,1638.0,0.0123811]
[1693809362701,1.6405,1638.2,1638.0,0.0123811]
[1693809362858,2.95,1638.1,1638.0,0.0123811]
[1693809363771,1.6405,1638.2,1638.0,0.0123811]
[1693809363977,2.95,1638.1,1638.0,0.0123811]
[1693809365307,1.6405,1638.2,1638.0,0.0123811]
[1693809365471,2.95,1638.1,1638.0,0.0123811]
[1693809368606,1.6405,1638.2,1638.0,0.0123811]
[1693809368905,2.95,1638.1,1638.0,0.0123811]
[1693809369071,1.6405,1638.2,1638.0,0.0123811]
[1693809369273,2.95,1638.1,1638.0,0.0123811]
[1693809370213,1.6405,1638.2,1638.0,0.0123811]
[1693809370504,2.95,1638.1,1638.0,0.0123811]
[1693809371298,2.28127145,1638.2,1638.0,0.0123811]
[1693809372122,2.95,1638.1,1638.0,0.0123811]
[1693809374590,4.65115043,1638.1,1638.0,0.0123811]
[1693809413896,6.24174663,1638.1,1638.0,0.0123811]
[1693809415318,4.65115043,1638.1,1638.0,0.0123811]
[1693809417066,6.24175189,1638.1,1638.0,0.0123811]
[1693809422002,2.95,1638.1,1638.0,0.0123811]
[1693809422205,6.24210394,1638.1,1638.0,0.0123811]
[1693809423569,4.6515,1638.1,1638.0,0.0123811]
[1693809423902,6.24210341,1638.1,1638.0,0.0123811]
[1693809427108,4.6515,1638.1,1638.0,0.0123811]
[1693809428312,6.24210445,1638.1,1638.0,0.0123811]
[1693809429608,4.6515,1638.1,1638.0,0.0123811]
[1693809434118,6.24210707,1638.1,1638.0,0.0123811]
[1693809449131,8.94210707,1638.1,1638.0,0.0123811]
[1693809460651,10.09407238,1638.1,1638.0,0.0123811]
[1693809460820,12.8561842,1638.1,1638.0,0.0123811]
[1693809461016,13.9381842,1638.1,1637.7,0.48746167]
[1693809461212,0.64124561,1637.9,1637.7,3.08185404]
[1693809461457,1.70164823,1637.9,1637.7,3.08185404]
[1693809461751,2.95,1637.9,1637.7,3.08185404]
[1693809462046,2.95,1637.9,1637.8,0.01089094]
[1693809464918,3.47153456,1637.9,1637.8,0.01089094]
[1693809465656,5.05923456,1637.9,1637.8,0.01089094]
[1693809466050,5.05923456,1637.9,1637.5,32.70778112]
[1693809466251,4.5377,1637.9,1637.6,3.08185404]
[1693809467041,4.5377,1637.9,1637.7,0.01048434]
[1693809468155,2.95,1637.9,1637.6,3.08185404]
[1693809468447,4.67324561,1637.9,1637.6,3.08185404]
[1693809468815,4.032,1637.7,1637.4,0.47919961]
[1693809469019,4.032,1637.7,1637.3,30.41]
[1693809469241,2.95,1637.7,1637.3,33.49185404]
[1693809470064,2.95,1637.7,1637.4,0.00927462]
[1693809471064,2.95,1637.7,1637.3,33.49185404]
[1693809472061,2.95,1637.7,1637.4,0.00927462]
[1693809472267,3.80517702,1637.7,1637.4,0.00927462]
[1693809473037,3.80517702,1637.7,1637.3,3.57639557]
[1693809474044,3.80517702,1637.7,1637.4,0.00927462]
[1693809475078,3.80517702,1637.7,1637.3,3.57639557]
[1693809476080,3.80517702,1637.7,1637.4,0.00927462]
[1693809477250,3.80517702,1637.7,1637.3,3.57639557]
[1693809477547,2.95,1637.7,1637.3,3.57639557]
[1693809478276,2.95,1637.7,1637.4,0.00927462]
[1693809479081,2.95,1637.7,1637.3,3.57639557]
[1693809479661,4.6541,1637.7,1637.3,3.57639557]
[1693809480162,4.6541,1637.7,1637.4,0.00927462]
[1693809480484,5.46139246,1637.7,1637.4,0.00927462]
[1693809481285,5.46139246,1637.7,1637.3,3.57639557]
[1693809482050,5.46139246,1637.7,1637.4,0.00927462]
[1693809483047,5.46139246,1637.7,1637.3,3.57639557]
[1693809484169,5.46139246,1637.7,1637.4,0.00927462]
[1693809485107,5.46139246,1637.7,1637.3,3.57639557]
[1693809486007,5.46139246,1637.7,1637.4,0.00927462]
[1693809486505,0.54613925,1637.6,1637.4,0.00927462]
[1693809487078,0.54613925,1637.6,1637.3,3.08185404]
[1693809487278,5.46139246,1637.7,1637.3,3.08185404]
[1693809488188,5.46139246,1637.7,1637.4,0.00928148]
[1693809489180,5.46139246,1637.7,1637.3,3.08185404]
[1693809490205,5.46139246,1637.7,1637.4,0.00928148]
[1693809491180,5.46139246,1637.7,1637.3,4.69865404]
[1693809492113,5.46139246,1637.7,1637.4,0.00928148]
[1693809492337,0.54613925,1637.6,1637.4,0.00928148]
[1693809493140,0.54613925,1637.6,1637.3,4.69865404]
[1693809493280,5.46139246,1637.7,1637.3,4.69865404]
[1693809494003,5.46139246,1637.7,1637.4,0.00928148]
[1693809495080,5.46139246,1637.7,1637.3,4.69865404]
[1693809496113,5.46139246,1637.7,1637.4,0.00928148]
[1693809496984,5.46139246,1637.7,1637.3,4.69865404]
[1693809497977,5.46139246,1637.7,1637.4,0.00928148]
[1693809498181,0.54613925,1637.6,1637.4,0.00928148]
[1693809498382,5.46139246,1637.7,1637.4,0.00928148]
[1693809499183,5.46139246,1637.7,1637.3,4.69865404]
[1693809500115,5.46139246,1637.7,1637.4,0.00928148]
[1693809501221,5.46139246,1637.7,1637.3,4.69865404]
[1693809502299,5.46139246,1637.7,1637.4,0.00928148]
[1693809503033,5.46139246,1637.7,1637.3,4.69865404]
[1693809503695,6.10078949,1637.7,1637.3,4.69865404]
[1693809504325,6.10078949,1637.7,1637.4,0.00928148]
[1693809505029,6.10078949,1637.7,1637.3,4.69865404]
[1693809506021,6.10078949,1637.7,1637.4,0.00928148]
[1693809507027,6.10078949,1637.7,1637.3,4.69865404]
[1693809508229,6.10078949,1637.7,1637.4,0.00928148]
[1693809509034,6.10078949,1637.7,1637.3,4.69865404]
[1693809509333,7.05988504,1637.7,1637.3,4.69865404]
[1693809509701,1.70014748,1637.6,1637.3,4.69865404]
[1693809510101,1.70014748,1637.6,1637.4,0.00928148]
[1693809511131,1.70014748,1637.6,1637.3,4.69865404]
[1693809512134,1.70014748,1637.6,1637.4,0.00928148]
[1693809512516,3.29128045,1637.6,1637.4,0.00928148]
[1693809513108,3.29128045,1637.6,1637.3,4.69865404]
[1693809514205,3.29128045,1637.6,1637.4,0.01006239]
[1693809514405,4.2624573,1637.6,1637.4,0.01006239]
[1693809514606,1.61057388,1637.6,1637.4,0.01006239]
[1693809515141,1.61057388,1637.6,1637.3,4.69865404]
[1693809515310,0.63939703,1637.6,1637.3,4.69865404]
[1693809515509,3.29128351,1637.6,1637.3,4.69865404]
[1693809516125,3.29128351,1637.6,1637.4,0.01006239]
[1693809517034,3.29128351,1637.6,1637.3,4.69865404]
[1693809518140,3.29128351,1637.6,1637.4,0.01006239]
[1693809518441,4.26246066,1637.6,1637.4,0.01006239]
[1693809518606,1.61057418,1637.6,1637.4,0.01006239]
[1693809519006,1.61057418,1637.6,1637.3,4.69865404]
[1693809520140,1.61057418,1637.6,1637.4,0.01006239]
[1693809520933,3.29017418,1637.6,1637.4,0.01006239]
[1693809521143,3.29017418,1637.6,1637.2,2.70042903]
[1693809521322,2.31899703,1637.6,1637.2,5.78228307]
[1693809522149,2.31899703,1637.6,1637.3,0.01007025]
[1693809526314,5.01899703,1637.6,1637.3,0.01007025]
[1693809547379,5.97809258,1637.6,1637.3,0.01007025]
[1693809562801,4.29849258,1637.6,1637.3,0.01007025]
[1693809563208,1.70018151,1637.5,1637.3,0.01007025]
[1693809564695,1.06078448,1637.5,1637.3,0.01007025]
[1693809564865,5.99979258,1637.6,1637.3,0.01007025]
[1693809565067,7.10338049,1637.6,1637.3,0.01007025]
[1693809566314,1.06077974,1637.5,1637.3,0.01007025]
[1693809566907,7.10338049,1637.6,1637.3,0.01007025]
[1693809576111,4.29849258,1637.6,1637.3,3.09192429]
[1693809576683,3.33939703,1637.6,1637.3,3.09192429]
[1693809576883,4.29849258,1637.6,1637.3,3.09192429]
[1693809577087,3.33939703,1637.6,1637.3,3.09192429]
[1693809577385,4.29849258,1637.6,1637.3,3.09192429]
[1693809577584,3.33939703,1637.6,1637.3,3.09192429]
[1693809617880,4.29849258,1637.6,1637.3,3.09192429]
[1693809618286,3.33939703,1637.6,1637.3,3.09192429]
[1693809618749,4.29849258,1637.6,1637.3,3.09192429]
[1693809619284,3.33939703,1637.6,1637.3,3.09192429]
[1693809619786,4.29849258,1637.6,1637.3,3.09192429]
[1693809621093,4.29849258,1637.6,1637.4,3.08185404]
[1693809621285,4.29849258,1637.6,1637.5,5.24585404]
[1693809621286,2.39711709,1637.6,1637.5,5.24585404]
[1693809621519,2.87728665,1637.8,1637.6,2.5245854]
[1693809621520,1.28244308,1637.8,1637.6,2.5245854]
[1693809621792,0.55712109,1637.8,1637.7,3.13185404]
[1693809621984,1.92366462,1638.0,1637.8,2.0]
[1693809621985,0.64122593,1637.9,1637.8,2.0]
[1693809622188,2.88551669,1638.1,1637.8,10.71001811]
[1693809622189,1.28245186,1638.1,1637.8,10.71001811]
[1693809622369,1.28245186,1638.1,1638.0,2.164]
[1693809622573,2.95,1638.5,1638.2,2.05]
[1693809622574,1.60306483,1638.5,1638.2,2.05]
[1693809622883,0.64122593,1638.5,1638.3,10.359]
[1693809623454,0.74222593,1638.6,1638.3,10.359]
[1693809623650,0.74222593,1638.6,1638.4,3.86657705]
[1693809624065,0.101,1638.6,1638.4,3.86657705]
[1693809626184,0.101,1638.6,1638.5,0.00977224]
[1693809626396,0.101,1638.6,1638.5,3.09162628]
[1693809628259,2.801,1638.6,1638.5,3.09162628]
[1693809628471,2.801,1638.6,1638.5,3.47926121]
[1693809629456,0.101,1638.6,1638.5,3.47926121]
[1693809646500,0.101,1638.6,1638.5,0.00977224]
[1693809646708,3.051,1638.6,1638.5,0.00977224]
[1693809648108,3.051,1638.6,1638.3,9.277]
[1693809648285,3.051,1638.6,1638.4,3.08185404]
[1693809649107,3.051,1638.6,1638.5,0.00888359]
[1693809661704,3.051,1638.6,1638.5,3.09073763]
[1693809665537,4.75239994,1638.6,1638.5,3.09073763]
[1693809666153,6.22325528,1638.6,1638.5,3.09073763]
[1693809666544,7.66819175,1638.6,1638.5,3.09073763]
[1693809668307,8.36979468,1638.6,1638.5,3.09073763]
[1693809670926,3.49214968,1638.6,1638.5,3.09073763]
[1693809671722,4.13286003,1638.6,1638.5,3.09073763]
[1693809672070,4.13284274,1638.6,1638.5,3.09073763]
[1693809674755,3.17172241,1638.6,1638.5,3.09073763]
[1693809677467,1.70086707,1638.6,1638.5,3.09073763]
[1693809679470,1.70281339,1638.7,1638.5,3.09073763]
[1693809679764,1.70281339,1638.7,1638.6,3.08185404]
[1693809679965,4.23696541,1638.7,1638.6,3.08185404]
[1693809680263,4.23696541,1638.7,1638.6,3.09038865]
[1693809682830,3.27584508,1638.7,1638.6,3.09038865]
[1693809689574,6.17684508,1638.7,1638.6,3.09038865]
[1693809690475,3.27584508,1638.7,1638.6,3.09038865]
[1693809691080,6.17684508,1638.7,1638.6,3.09038865]
[1693809691675,4.70281086,1638.7,1638.6,3.09038865]
[1693809692680,6.17644625,1638.7,1638.6,3.09038865]
[1693809692855,7.21478526,1638.7,1638.6,3.09038865]
[1693809694388,6.17644625,1638.7,1638.6,3.09038865]
[1693809694964,7.13756658,1638.7,1638.6,3.09038865]
[1693809698098,4.23656658,1638.7,1638.6,3.09038865]
[1693809698607,7.13756658,1638.7,1638.6,3.09038865]
[1693809701101,6.49687352,1638.7,1638.6,3.09038865]
[1693809701252,4.23643103,1638.7,1638.6,3.09038865]
[1693809701452,6.49687352,1638.7,1638.6,3.09038865]
[1693809704114,3.59587352,1638.7,1638.6,3.09038865]
[1693809704611,6.49687352,1638.7,1638.6,3.09038865]
[1693809708803,3.59587352,1638.7,1638.6,3.09038865]
[1693809708993,6.49687352,1638.7,1638.6,3.09038865]
[1693809709800,3.59587352,1638.7,1638.6,3.09038865]
[1693809710111,6.49687352,1638.7,1638.6,3.09038865]
[1693809712861,6.49687352,1638.7,1638.6,0.00853461]
[1693809713062,7.7396497,1638.7,1638.6,0.00853461]
[1693809713272,7.7396497,1638.7,1638.3,9.87721223]
[1693809713475,3.17447882,1638.6,1638.4,3.08185404]
[1693809714317,3.17447882,1638.6,1638.5,0.00822739]
[1693809714468,3.17447882,1638.6,1638.5,3.09008143]
[1693809724615,3.32309388,1638.6,1638.5,3.09008143]
[1693809726013,1.84945849,1638.6,1638.5,3.09008143]
[1693809727803,1.70084343,1638.6,1638.5,3.09008143]
[1693809729730,1.70084343,1638.6,1638.5,3.58532859]
[1693809730619,1.70084343,1638.6,1638.5,3.09008143]
[1693809734450,3.002,1638.7,1638.5,3.09008143]
[1693809734652,1.70093419,1638.6,1638.5,3.09008143]
[1693809736123,3.1748958,1638.6,1638.5,3.09008143]
[1693809736326,1.70093419,1638.6,1638.5,3.09008143]
[1693809737827,3.17501924,1638.6,1638.5,3.09008143]
[1693809738102,1.70093419,1638.6,1638.5,3.09008143]
[1693809738863,3.96319487,1638.7,1638.5,3.09008143]
[1693809738864,3.002,1638.7,1638.5,3.09008143]
[1693809739025,3.17512815,1638.6,1638.5,3.09008143]
[1693809742858,1.70102822,1638.6,1638.5,3.09008143]
[1693809743062,3.17519014,1638.6,1638.5,3.09008143]
[1693809743359,1.70102822,1638.6,1638.5,3.09008143]
[1693809743513,3.17518691,1638.6,1638.5,3.09008143]
[1693809755462,1.70102822,1638.6,1638.5,3.09008143]
[1693809759909,1.68450879,1638.6,1638.5,3.09008143]
[1693809767314,6.5865326,1638.7,1638.5,3.09008143]
[1693809767522,0.64089304,1638.6,1638.5,3.09008143]
[1693809768127,0.64089304,1638.6,1638.5,0.00822739]
[1693809768984,2.58439304,1638.6,1638.5,0.00822739]
[1693809769186,1.9435,1638.6,1638.3,10.51680894]
[1693809769494,2.58439304,1638.6,1638.4,4.13353493]
[1693809770221,2.58439304,1638.6,1638.5,0.00874756]
[1693809775428,1.9435,1638.6,1638.5,0.00874756]
[1693809777735,2.58439304,1638.6,1638.5,0.00874756]
[1693809777911,4.05814012,1638.6,1638.5,0.00874756]
[1693809780022,5.11829139,1638.6,1638.5,0.00874756]
[1693809801080,1.9435,1638.6,1638.5,0.00874756]
[1693809805251,5.62019304,1638.7,1638.5,0.00874756]
[1693809814796,6.5675963,1638.7,1638.5,0.00874756]
[1693809855092,5.62019304,1638.7,1638.5,0.00874756]
[1693809855266,3.64289304,1638.7,1638.5,0.00874756]
[1693809866116,5.63339304,1638.7,1638.5,0.00874756]
[1693809907608,3.64289304,1638.7,1638.5,3.0906016]
[1693809907810,3.002,1638.7,1638.6,3.3909142]